fUSD/lending_fUSD_20250113
["ID","MTS","AMOUNT","RATE_DAILY","PERIOD"]
[348714142,1736745036482,-500.0,9.999e-05,2]
[348714143,1736745036491,-500.0,9.999e-05,2]
[348714144,1736745036501,-500.0,9.999e-05,2]
[348714145,1736745036511,-503.32994012,9.999e-05,2]
[348714146,1736745036520,-401.58369998,9.999e-05,2]
[348714147,1736745036530,-542.17625081,9.999e-05,2]
[348714148,1736745036540,-500.0,9.999e-05,2]
[348714149,1736745036549,-503.4388772,9.999e-05,2]
[348714150,1736745036559,-503.15594611,9.999e-05,2]
[348714151,1736745036569,-500.0,9.999e-05,2]
[348714152,1736745036579,-501.90263845,9.999e-05,2]
[348714153,1736745036588,-503.12741585,9.999e-05,2]
[348714154,1736745036598,-501.95622146,9.999e-05,2]
[348714155,1736745036607,-500.0,9.999e-05,2]
[348714156,1736745036617,-501.27815395,9.999e-05,2]
[348714157,1736745036626,-502.24380357,9.999e-05,2]
[348714158,1736745036636,-502.0411987,9.999e-05,2]
[348714159,1736745036645,-500.98480149,9.999e-05,2]
[348714160,1736745036654,-506.79979028,9.999e-05,2]
[348714161,1736745036663,-500.0,9.999e-05,2]
[348714162,1736745036673,-500.0,9.999e-05,2]
[348714163,1736745036682,-502.63307898,9.999e-05,2]
[348714164,1736745036692,-500.0,9.999e-05,2]
[348714165,1736745036701,-500.0,9.999e-05,2]
[348714166,1736745036712,-501.10116236,9.999e-05,2]
[348714167,1736745036722,-506.40018164,9.999e-05,2]
[348714168,1736745036731,-409.81114723,9.999e-05,2]
[348714169,1736745036741,-500.0,9.999e-05,2]
[348714170,1736745036750,-500.78205816,9.999e-05,2]
[348714171,1736745036759,-500.0,9.999e-05,2]
[348714172,1736745036769,-500.0,9.999e-05,2]
[348714173,1736745036779,-730.88,9.999e-05,2]
[348714174,1736745036788,-500.0,9.999e-05,2]
[348714175,1736745036798,-507.16777624,9.999e-05,2]
[348714176,1736745036808,-500.0,9.999e-05,2]
[348714177,1736745036818,-500.0,9.999e-05,2]
[348714178,1736745036827,-242.58948819,9.999e-05,2]
[348714179,1736745036837,-501.36000619,9.999e-05,2]
[348714180,1736745036847,-500.0,9.999e-05,2]
[348714181,1736745036857,-501.54363012,9.999e-05,2]
[348714182,1736745036866,-500.0,9.999e-05,2]
[348714183,1736745036875,-503.69770536,9.999e-05,2]
[348714184,1736745036885,-500.0,9.999e-05,2]
[348714185,1736745036895,-327.23160121,9.999e-05,2]
[348714186,1736745036905,-501.27805626,9.999e-05,2]
[348714187,1736745036915,-500.0,9.999e-05,2]
[348714188,1736745036924,-500.8980417,9.999e-05,2]
[348714189,1736745036934,-500.0,9.999e-05,2]
[348714190,1736745036944,-504.53532024,9.999e-05,2]
[348714191,1736745036953,-501.89317111,9.999e-05,2]
[348714192,1736745036963,-500.0,9.999e-05,2]
[348714193,1736745036972,-502.40956051,9.999e-05,2]
[348714194,1736745036981,-500.0,9.999e-05,2]
[348714195,1736745036991,-507.60363005,9.999e-05,2]
[348714196,1736745037001,-519.52159883,9.999e-05,2]
[348714197,1736745037011,-513.26863637,9.999e-05,2]
[348714198,1736745037021,-497.15345469,9.999e-05,2]
[348714199,1736745037030,-500.0,9.999e-05,2]
[348714200,1736745037039,-508.0664942,9.999e-05,2]
[348714201,1736745037049,-500.0,9.999e-05,2]
[348714202,1736745037058,-504.27428304,9.999e-05,2]
[348714203,1736745037067,-500.93592831,9.999e-05,2]
[348714204,1736745037076,-500.0,9.999e-05,2]
[348714205,1736745037086,-403.17503893,9.999e-05,2]
[348714206,1736745037095,-510.82610891,9.999e-05,2]
[348714207,1736745037104,-501.87352524,9.999e-05,2]
[348714208,1736745037114,-500.0,9.999e-05,2]
[348714209,1736745037123,-486.23076591,9.999e-05,2]
[348714210,1736745037133,-521.33927296,9.999e-05,2]
[348714211,1736745037143,-500.0,9.999e-05,2]
[348714212,1736745037155,-500.0,9.999e-05,2]
[348714213,1736745037170,-500.0,9.999e-05,2]
[348714214,1736745037180,-505.92251215,9.999e-05,2]
[348714215,1736745037189,-359.66077353,9.999e-05,2]
[348714216,1736745037198,-500.0,9.999e-05,2]
[348714217,1736745037209,-500.0,9.999e-05,2]
[348714218,1736745037218,-500.0,9.999e-05,2]
[348714219,1736745037228,-500.0,9.999e-05,2]
[348714220,1736745037238,-500.0,9.999e-05,2]
[348714221,1736745037248,-627.08728379,9.999e-05,2]
[348714222,1736745037257,-500.0,9.999e-05,2]
[348714223,1736745037267,-500.0,9.999e-05,2]
[348714224,1736745037276,-449.81189462,9.999e-05,2]
[348714225,1736745037285,-500.0,9.999e-05,2]
[348714226,1736745037294,-514.79821658,9.999e-05,2]
[348714227,1736745037303,-500.0,9.999e-05,2]
[348714228,1736745037313,-779.62,9.999e-05,2]
[348714229,1736745037324,-500.0,9.999e-05,2]
[348714230,1736745037333,-506.91336361,9.999e-05,2]
[348714231,1736745037342,-504.8347509,9.999e-05,2]
[348714232,1736745037351,-508.10196232,9.999e-05,2]
[348714233,1736745037360,-500.0,9.999e-05,2]
[348714234,1736745037369,-500.0,9.999e-05,2]
[348714235,1736745037378,-500.94410186,9.999e-05,2]
[348714236,1736745037388,-504.90099446,9.999e-05,2]
[348714237,1736745037397,-501.02536612,9.999e-05,2]
[348714238,1736745037406,-932.93,9.999e-05,2]
[348714239,1736745037416,-505.82448226,9.999e-05,2]
[348714240,1736745037425,-503.51894529,9.999e-05,2]
[348714241,1736745037434,-500.0,9.999e-05,2]
[348714242,1736745037444,-500.0,9.999e-05,2]
[348714243,1736745037453,-500.0,9.999e-05,2]
[348714244,1736745037463,-506.04811962,9.999e-05,2]
[348714245,1736745037471,-500.0,9.999e-05,2]
[348714246,1736745037480,-845.41,9.999e-05,2]
[348714247,1736745037490,-500.0,9.999e-05,2]
[348714248,1736745037499,-506.37702821,9.999e-05,2]
[348714249,1736745037508,-500.0,9.999e-05,2]
[348714250,1736745037517,-500.0,9.999e-05,2]
[348714251,1736745037527,-500.0,9.999e-05,2]
[348714252,1736745037535,-500.0,9.999e-05,2]
[348714253,1736745037544,-500.0,9.999e-05,2]
[348714254,1736745037554,-503.19583265,9.999e-05,2]
[348714255,1736745037563,-500.0,9.999e-05,2]
[348714256,1736745037572,-678.33,9.999e-05,2]
[348714257,1736745037582,-500.0,9.999e-05,2]
[348714258,1736745037591,-500.0,9.999e-05,2]
[348714259,1736745037600,-500.0,9.999e-05,2]
[348714260,1736745037609,-508.60198791,9.999e-05,2]
[348714261,1736745037619,-500.0,9.999e-05,2]
[348714262,1736745037628,-500.0,9.999e-05,2]
[348714263,1736745037637,-500.0,9.999e-05,2]
[348714264,1736745037646,-500.0,9.999e-05,2]
[348714265,1736745037655,-500.0,9.999e-05,2]
[348714266,1736745037664,-500.0,9.999e-05,2]
[348714267,1736745037674,-1766.84,9.999e-05,2]
[348714268,1736745037684,-500.0,9.999e-05,2]
[348714269,1736745037694,-500.0,9.999e-05,2]
[348714270,1736745037703,-510.63149276,9.999e-05,2]
[348714271,1736745037713,-500.0,9.999e-05,2]
[348714272,1736745037723,-500.0,9.999e-05,2]
[348714273,1736745037732,-931.89,9.999e-05,2]
[348714275,1736745037742,-500.0,9.999e-05,2]
[348714277,1736745037751,-500.0,9.999e-05,2]
[348714278,1736745037760,-500.0,9.999e-05,2]
[348714279,1736745037769,-500.0,9.999e-05,2]
[348714281,1736745037779,-500.0,9.999e-05,2]
[348714282,1736745037970,-500.0,9.999e-05,2]
[348714283,1736745037980,-2032.58,9.999e-05,2]
[348714284,1736745037990,-500.0,9.999e-05,2]
[348714285,1736745037999,-500.0,9.999e-05,2]
[348714286,1736745038009,-500.0,9.999e-05,2]
[348714287,1736745038018,-500.0,9.999e-05,2]
[348714288,1736745038027,-500.0,9.999e-05,2]
[348714289,1736745038037,-500.0,9.999e-05,2]
[348714290,1736745038046,-2425.78,9.999e-05,2]
[348714291,1736745038056,-500.0,9.999e-05,2]
[348714292,1736745038066,-500.0,9.999e-05,2]
[348714293,1736745038075,-500.0,9.999e-05,2]
[348714294,1736745038085,-500.0,9.999e-05,2]
[348714295,1736745038094,-610.16,9.999e-05,2]
[348714296,1736745038104,-500.0,9.999e-05,2]
[348714297,1736745038113,-500.0,9.999e-05,2]
[348714298,1736745038123,-500.0,9.999e-05,2]
[348714299,1736745038133,-500.0,9.999e-05,2]
[348714300,1736745038143,-500.0,9.999e-05,2]
[348714302,1736745038153,-500.0,9.999e-05,2]
[348714304,1736745038164,-500.0,9.999e-05,2]
[348714305,1736745038174,-500.0,9.999e-05,2]
[348714308,1736745038183,-500.0,9.999e-05,2]
[348714309,1736745038194,-500.0,9.999e-05,2]
[348714311,1736745038203,-500.0,9.999e-05,2]
[348714314,1736745038216,-500.0,9.999e-05,2]
[348714316,1736745038226,-500.0,9.999e-05,2]
[348714317,1736745038237,-500.0,9.999e-05,2]
[348714320,1736745038247,-500.0,9.999e-05,2]
[348714322,1736745038257,-500.0,9.999e-05,2]
[348714324,1736745038266,-500.0,9.999e-05,2]
[348714326,1736745038276,-214.58912684,9.999e-05,2]
[348714328,1736745038285,-500.0,9.999e-05,2]
[348714330,1736745038294,-500.0,9.999e-05,2]
[348714332,1736745038304,-500.0,9.999e-05,2]
[348714334,1736745038314,-500.0,9.999e-05,2]
[348714336,1736745038324,-500.0,9.999e-05,2]
[348714338,1736745038333,-1178.55,9.999e-05,2]
[348714340,1736745038343,-500.0,9.999e-05,2]
[348714342,1736745038352,-507.86721059,9.999e-05,2]
[348714344,1736745038363,-500.0,9.999e-05,2]
[348714346,1736745038372,-508.69787232,9.999e-05,2]
[348714348,1736745038382,-500.0,9.999e-05,2]
[348714350,1736745038392,-500.0,9.999e-05,2]
[348714351,1736745038401,-500.0,9.999e-05,2]
[348714354,1736745038411,-500.0,9.999e-05,2]
[348714355,1736745038421,-500.0,9.999e-05,2]
[348714358,1736745038430,-161.2,9.999e-05,2]
[348714360,1736745038440,-500.0,9.999e-05,2]
[348714362,1736745038449,-503.4459378,9.999e-05,2]
[348714363,1736745038460,-511.68175685,9.999e-05,2]
[348714365,1736745038470,-1399.27,9.999e-05,2]
[348714368,1736745038480,-500.0,9.999e-05,2]
[348714370,1736745038489,-500.0,9.999e-05,2]
[348714372,1736745038499,-500.0,9.999e-05,2]
[348714374,1736745038509,-39416.40311547,0.0001,2]
[348714402,1736745038779,-7699.34598192,0.0001,2]
[348714404,1736745038791,-3799.37093081,0.0001,2]
[348714409,1736745038821,-4793.7,0.0001,2]
[348714411,1736745038832,-292.08531895,0.0001,2]
[348714413,1736745038845,-1162.63548311,0.0001,2]
[348714417,1736745038871,-174665.41810285,0.0001,2]
[348714419,1736745038883,-1407.06112803,0.0001,2]
[348714421,1736745038895,-947.31015434,0.0001,2]
[348714423,1736745038907,-1925.13,0.0001,2]
[348714426,1736745038918,-946.61768266,0.0001,2]
[348714495,1736745039589,-1144.94,9.996e-05,2]
[348714497,1736745039599,-17439.69137277,0.0001,2]
[348714500,1736745039610,-6526.06572285,0.0001,2]
[348714502,1736745039622,-22714.42977634,0.0001,2]
[348714504,1736745039634,-455.31286443,0.0001,2]
[348714506,1736745039645,-312.27156458,0.0001,2]
[348714509,1736745039663,-4677.82886025,0.0001,2]
[348714513,1736745039687,-519.07829482,0.0001,2]
[348714515,1736745039699,-22257.80988897,0.0001,2]
[348714517,1736745039712,-509.55688897,0.0001,2]
[348714520,1736745039729,-757.25070126,0.0001,2]
[348714523,1736745039754,-511.90603702,0.0001,2]
[348714526,1736745039767,-985.75000152,0.0001,2]
[348714561,1736745040184,-499.38000045,0.0001,2]
[348714563,1736745040209,-607.46602351,0.0001,2]
[348714565,1736745040221,-1902.57995286,0.0001,2]
[348714568,1736745040239,-3795.15533901,0.0001,2]
[348714570,1736745040251,-4927.23480549,0.0001,2]
[348714572,1736745040262,-441.50639637,0.0001,2]
[348714583,1736745040365,-3966.081876,0.0001,2]
[348714586,1736745040376,-1693.05149831,0.0001,2]
[348714602,1736745043076,-1337.05,9.998e-05,2]
[348714603,1736745043086,-2669.46,9.998e-05,2]
[348714604,1736745043095,-162.67289811,9.998e-05,2]
[348714605,1736745043104,-547.66333829,0.0001,2]
[348714606,1736745043115,-36258.88051778,0.0001,2]
[348714682,1736745045867,-592.1,9.997e-05,2]
[348714683,1736745045876,-6107.9,0.0001,2]
[348714684,1736745045887,-19507.74026,0.0001,2]
[348714685,1736745045902,-14092.43068672,0.0001,2]
[348714686,1736745045913,-809.82234002,0.0001,2]
[348714687,1736745045924,-31639.77275169,0.0001,2]
[348714688,1736745045935,-912.34615092,0.0001,2]
[348714689,1736745046031,-258714.36551241,0.0001,2]
[348714690,1736745046093,-546.006,0.0001,2]
[348714691,1736745046144,-23506.61169528,0.0001,2]
[348714692,1736745046157,-59857.728561,0.0001,2]
[348714693,1736745259808,798.76,8.219e-05,2]
[348714694,1736745562738,200.0,0.0001,4]
[348714696,1736745587316,200.0,0.0001,4]
[348714697,1736745618612,165.0,0.0001,4]
[348714698,1736745674612,159.99076687,0.0002,120]
[348714701,1736745912046,-250.0,9.53e-05,2]
[348714702,1736745912073,-1000.0,9.9e-05,2]
[348714703,1736745912101,-150.0,9.995e-05,2]
[348714704,1736745912127,-4328.429,9.996e-05,2]
[348714705,1736745912152,-232.707,9.996e-05,2]
[348714706,1736745912181,-3034.79,9.996e-05,2]
[348714707,1736745912207,-7225.73514408,9.997e-05,2]
[348714708,1736745912235,-650.46,9.997e-05,2]
[348714709,1736745912262,-507.84,9.997e-05,2]
[348714710,1736745912288,-523.28,9.997e-05,2]
[348714711,1736745912314,-1392.1,9.997e-05,2]
[348714712,1736745912340,-500.0,9.997e-05,2]
[348714713,1736745912366,-833.21,9.997e-05,2]
[348714714,1736745912394,-718.52,9.997e-05,2]
[348714715,1736745912421,-500.0,9.997e-05,2]
[348714716,1736745912449,-500.0,9.997e-05,2]
[348714717,1736745912475,-500.0,9.997e-05,2]
[348714718,1736745912504,-1300.98,9.997e-05,2]
[348714719,1736745912533,-855.71,9.997e-05,2]
[348714720,1736745912558,-500.0,9.998e-05,2]
[348714721,1736745912584,-416.5138575,9.998e-05,2]
[348714722,1736745912610,-500.0,9.998e-05,2]
[348714723,1736745912636,-242.69784,9.998e-05,2]
[348714724,1736745912662,-500.0,9.998e-05,2]
[348714725,1736745912687,-500.0,9.998e-05,2]
[348714726,1736745912713,-500.0,9.998e-05,2]
[348714727,1736745912740,-500.0,9.998e-05,2]
[348714728,1736745912767,-500.0,9.998e-05,2]
[348714729,1736745912792,-500.0,9.998e-05,2]
[348714730,1736745912818,-490.0,9.998e-05,2]
[348714731,1736745912843,-500.0,9.998e-05,2]
[348714732,1736745912867,-500.0,9.998e-05,2]
[348714733,1736745912893,-500.0,9.998e-05,2]
[348714734,1736745912919,-500.0,9.998e-05,2]
[348714735,1736745912944,-500.0,9.998e-05,2]
[348714736,1736745912974,-500.0,9.998e-05,2]
[348714737,1736745913002,-1942.41,9.998e-05,2]
[348714738,1736745913028,-500.0,9.998e-05,2]
[348714739,1736745913055,-500.0,9.998e-05,2]
[348714740,1736745913081,-500.0,9.998e-05,2]
[348714741,1736745913107,-500.0,9.998e-05,2]
[348714742,1736745913133,-500.0,9.998e-05,2]
[348714743,1736745913159,-500.0,9.998e-05,2]
[348714744,1736745913186,-500.0,9.998e-05,2]
[348714745,1736745913213,-500.0,9.998e-05,2]
[348714746,1736745913239,-500.0,9.998e-05,2]
[348714747,1736745913265,-732.04,9.998e-05,2]
[348714748,1736745913291,-500.0,9.998e-05,2]
[348714749,1736745913317,-500.0,9.998e-05,2]
[348714750,1736745913343,-500.0,9.998e-05,2]
[348714751,1736745913371,-500.0,9.998e-05,2]
[348714752,1736745913398,-500.0,9.998e-05,2]
[348714753,1736745913427,-500.0,9.998e-05,2]
[348714754,1736745913453,-508.15645446,9.998e-05,2]
[348714755,1736745913480,-500.0,9.998e-05,2]
[348714756,1736745913508,-500.0,9.998e-05,2]
[348714757,1736745913536,-500.0,9.998e-05,2]
[348714758,1736745913563,-500.0,9.998e-05,2]
[348714759,1736745913589,-500.0,9.998e-05,2]
[348714760,1736745913615,-500.0,9.998e-05,2]
[348714761,1736745913640,-500.0,9.998e-05,2]
[348714762,1736745913666,-500.0,9.998e-05,2]
[348714763,1736745913691,-500.0,9.998e-05,2]
[348714764,1736745913717,-500.0,9.998e-05,2]
[348714765,1736745913946,-506.38510219,9.998e-05,2]
[348714766,1736745913973,-500.0,9.998e-05,2]
[348714767,1736745914000,-500.0,9.998e-05,2]
[348714768,1736745914028,-500.0,9.998e-05,2]
[348714769,1736745914055,-500.0,9.998e-05,2]
[348714770,1736745914082,-245.73271136,9.998e-05,2]
[348714771,1736745914108,-780.26,9.998e-05,2]
[348714772,1736745914134,-500.0,9.998e-05,2]
[348714773,1736745914162,-264.50273628,9.998e-05,2]
[348714774,1736745914189,-500.0,9.998e-05,2]
[348714775,1736745914216,-500.0,9.998e-05,2]
[348714776,1736745914242,-941.47,9.998e-05,2]
[348714777,1736745914270,-500.0,9.998e-05,2]
[348714778,1736745914296,-500.0,9.998e-05,2]
[348714779,1736745914323,-500.0,9.998e-05,2]
[348714780,1736745914348,-500.0,9.998e-05,2]
[348714781,1736745914374,-500.0,9.998e-05,2]
[348714782,1736745914400,-851.84,9.998e-05,2]
[348714783,1736745914428,-500.0,9.998e-05,2]
[348714784,1736745914454,-511.64127644,9.998e-05,2]
[348714785,1736745914482,-650.07,9.998e-05,2]
[348714786,1736745914511,-500.0,9.998e-05,2]
[348714787,1736745914537,-500.0,9.998e-05,2]
[348714788,1736745914563,-500.0,9.998e-05,2]
[348714789,1736745914589,-500.0,9.998e-05,2]
[348714790,1736745914615,-500.0,9.998e-05,2]
[348714791,1736745914642,-1773.56,9.998e-05,2]
[348714792,1736745914669,-500.0,9.998e-05,2]
[348714793,1736745914695,-500.0,9.998e-05,2]
[348714794,1736745914721,-500.0,9.998e-05,2]
[348714795,1736745914747,-502.28,9.998e-05,2]
[348714796,1736745914773,-500.0,9.998e-05,2]
[348714797,1736745914799,-932.86,9.998e-05,2]
[348714798,1736745914826,-539.02,9.998e-05,2]
[348714799,1736745914852,-500.0,9.998e-05,2]
[348714800,1736745914880,-2004.31,9.998e-05,2]
[348714801,1736745914908,-2421.53,9.998e-05,2]
[348714802,1736745914935,-500.0,9.998e-05,2]
[348714803,1736745914961,-500.0,9.998e-05,2]
[348714804,1736745914988,-531.54,9.998e-05,2]
[348714805,1736745915015,-500.0,9.998e-05,2]
[348714806,1736745915042,-1228.58,9.998e-05,2]
[348714807,1736745915070,-522.84,9.998e-05,2]
[348714808,1736745915097,-500.0,9.998e-05,2]
[348714809,1736745915123,-500.0,9.998e-05,2]
[348714810,1736745915148,-552.08,9.998e-05,2]
[348714811,1736745915175,-1427.52,9.998e-05,2]
[348714812,1736745915200,-500.0,9.998e-05,2]
[348714813,1736745915226,-500.0,9.998e-05,2]
[348714814,1736745915253,-500.0,9.998e-05,2]
[348714815,1736745915279,-517.39039792,9.998e-05,2]
[348714816,1736745915305,-567.61,9.998e-05,2]
[348714817,1736745915332,-1083.33,9.999e-05,2]
[348714818,1736745915357,-1116.28977294,9.999e-05,3]
[348714819,1736745915384,-316.77870683,9.999e-05,3]
[348714820,1736745936580,4464.05228394,8e-05,2]
[348714821,1736746130023,172.2,0.0002,120]
[348714827,1736746232177,-306.82729485,9e-05,2]
[348714828,1736746232187,-250.0,9.303e-05,2]
[348714829,1736746232196,-1000.0,9.326e-05,2]
[348714830,1736746232206,-599.14,9.333e-05,2]
[348714831,1736746232215,-500.0,9.883e-05,2]
[348714832,1736746232223,-5000.0,9.9e-05,2]
[348714833,1736746232233,-300.0,9.995e-05,2]
[348714834,1736746232243,-500.0,9.996e-05,2]
[348714835,1736746232252,-150.0,9.997e-05,2]
[348714836,1736746232262,-546.89,9.998e-05,2]
[348714837,1736746232272,-500.0,9.998e-05,2]
[348714838,1736746232282,-500.0,9.998e-05,2]
[348714839,1736746232291,-500.0,9.998e-05,2]
[348714840,1736746232301,-1038.19,9.998e-05,2]
[348714841,1736746232310,-650.84,9.998e-05,2]
[348714842,1736746232320,-693.04,9.998e-05,2]
[348714843,1736746232330,-1100.99,9.998e-05,2]
[348714844,1736746232339,-910.71,9.998e-05,2]
[348714845,1736746232348,-1182.74,9.998e-05,2]
[348714846,1736746232358,-799.5110661,9.999e-05,3]
[348714847,1736746232367,-890.59,9.999e-05,2]
[348714848,1736746232376,-718.20004268,9.999e-05,2]
[348714849,1736746232389,-599.95431018,9.999e-05,2]
[348714850,1736746232618,-844.56564714,9.999e-05,2]
[348714851,1736746232627,-503.59199804,9.999e-05,2]
[348714852,1736746232636,-557.38106266,9.999e-05,2]
[348714853,1736746232646,-503.70157187,9.999e-05,2]
[348714854,1736746232655,-887.32,9.999e-05,2]
[348714855,1736746232663,-506.39551208,9.999e-05,2]
[348714856,1736746232673,-268.67846729,9.999e-05,2]
[348714857,1736746232682,-1578.47,9.999e-05,2]
[348714858,1736746232691,-500.0,9.999e-05,2]
[348714859,1736746232700,-502.51993501,9.999e-05,2]
[348714860,1736746232710,-579.01988388,9.999e-05,2]
[348714861,1736746232722,-156.79480797,9.999e-05,2]
[348714862,1736746232750,-343.20519203,9.999e-05,2]
[348714863,1736746232759,-500.0,9.999e-05,2]
[348714864,1736746232769,-192.87772921,9.999e-05,2]
[348714865,1736746232779,-733.24,9.999e-05,2]
[348714866,1736746232790,-115.91709152,9.999e-05,2]
[348714867,1736746232801,-390.85300278,9.999e-05,2]
[348714868,1736746232812,-507.72319443,9.999e-05,2]
[348714869,1736746232821,-505.11150034,9.999e-05,2]
[348714870,1736746232833,-883.44,9.999e-05,2]
[348714871,1736746232843,-500.0,9.999e-05,2]
[348714872,1736746232852,-508.80493973,9.999e-05,2]
[348714873,1736746232862,-500.0,9.999e-05,2]
[348714874,1736746232871,-500.0,9.999e-05,2]
[348714875,1736746232881,-800.25,9.999e-05,2]
[348714876,1736746232890,-499.88611166,9.999e-05,2]
[348714877,1736746232901,-500.0,9.999e-05,2]
[348714878,1736746232912,-257.42642762,9.999e-05,2]
[348714879,1736746232921,-372.80077324,9.999e-05,2]
[348714880,1736746232930,-503.38821336,9.999e-05,2]
[348714881,1736746232940,-582.29404858,9.999e-05,2]
[348714882,1736746232950,-500.0,9.999e-05,2]
[348714883,1736746232959,-1506.67,9.999e-05,2]
[348714885,1736746232968,-500.0,9.999e-05,2]
[348714887,1736746232977,-500.0,9.999e-05,2]
[348714889,1736746232988,-500.0,9.999e-05,2]
[348714891,1736746232996,-500.0,9.999e-05,2]
[348714893,1736746233006,-312.74599313,9.999e-05,2]
[348714895,1736746233015,-500.0,9.999e-05,2]
[348714897,1736746233025,-500.0,9.999e-05,2]
[348714898,1736746233035,-500.0,9.999e-05,2]
[348714900,1736746233044,-648.37,9.999e-05,2]
[348714903,1736746233054,-593.60711455,9.999e-05,2]
[348714904,1736746233296,-500.0,9.999e-05,2]
[348714905,1736746233306,-595.07,9.999e-05,2]
[348714906,1736746233316,-561.35015774,9.999e-05,2]
[348714907,1736746233325,-500.0,9.999e-05,2]
[348714908,1736746233335,-500.0,9.999e-05,2]
[348714909,1736746233344,-500.0,9.999e-05,2]
[348714910,1736746233354,-509.76234719,9.999e-05,2]
[348714911,1736746233363,-606.2187505,9.999e-05,2]
[348714912,1736746233372,-500.0,9.999e-05,2]
[348714913,1736746233381,-500.0,9.999e-05,2]
[348714914,1736746233390,-500.0,9.999e-05,2]
[348714915,1736746233399,-500.0,9.999e-05,2]
[348714916,1736746233409,-500.0,9.999e-05,2]
[348714917,1736746233418,-500.0,9.999e-05,2]
[348714918,1736746233428,-500.0,9.999e-05,2]
[348714919,1736746233437,-728.16,9.999e-05,2]
[348714920,1736746233447,-500.0,9.999e-05,2]
[348714921,1736746233457,-607.51839087,9.999e-05,2]
[348714922,1736746233467,-500.0,9.999e-05,2]
[348714923,1736746233476,-513.04442854,9.999e-05,2]
[348714924,1736746233485,-500.0,9.999e-05,2]
[348714925,1736746233495,-500.0,9.999e-05,2]
[348714926,1736746233504,-500.0,9.999e-05,2]
[348714927,1736746233517,-500.0,9.999e-05,2]
[348714928,1736746233526,-500.0,9.999e-05,2]
[348714929,1736746233535,-500.0,9.999e-05,2]
[348714930,1736746233545,-500.0,9.999e-05,2]
[348714931,1736746233555,-500.0,9.999e-05,2]
[348714932,1736746233565,-500.0,9.999e-05,2]
[348714933,1736746233574,-588.26,9.999e-05,2]
[348714934,1736746233585,-500.0,9.999e-05,2]
[348714935,1736746233594,-183.50942762,9.999e-05,2]
[348714936,1736746233603,-500.0,9.999e-05,2]
[348714937,1736746233612,-500.0,9.999e-05,2]
[348714938,1736746233621,-500.0,9.999e-05,2]
[348714939,1736746233631,-500.0,9.999e-05,2]
[348714940,1736746233640,-500.0,9.999e-05,2]
[348714941,1736746233649,-500.0,9.999e-05,2]
[348714942,1736746233659,-500.0,9.999e-05,2]
[348714943,1736746233668,-500.0,9.999e-05,2]
[348714944,1736746233678,-500.0,9.999e-05,2]
[348714945,1736746233687,-500.0,9.999e-05,2]
[348714946,1736746233696,-500.0,9.999e-05,2]
[348714947,1736746233705,-500.0,9.999e-05,2]
[348714948,1736746233715,-240.28771284,9.999e-05,2]
[348714949,1736746233724,-500.0,9.999e-05,2]
[348714950,1736746233733,-500.0,9.999e-05,2]
[348714951,1736746233743,-500.0,9.999e-05,2]
[348714952,1736746233752,-500.0,9.999e-05,2]
[348714953,1736746233762,-500.0,9.999e-05,2]
[348714954,1736746233772,-500.0,9.999e-05,2]
[348714955,1736746233781,-634.65585695,9.999e-05,2]
[348714956,1736746233790,-500.0,9.999e-05,2]
[348714957,1736746233799,-500.0,9.999e-05,2]
[348714958,1736746233809,-500.0,9.999e-05,2]
[348714959,1736746233818,-500.0,9.999e-05,2]
[348714960,1736746233827,-500.0,9.999e-05,2]
[348714961,1736746233836,-503.59764652,9.999e-05,2]
[348714962,1736746233845,-500.0,9.999e-05,2]
[348714963,1736746233854,-500.0,9.999e-05,2]
[348714964,1736746233863,-501.56,9.999e-05,2]
[348714965,1736746233872,-500.0,9.999e-05,2]
[348714966,1736746233881,-508.5005226,9.999e-05,2]
[348714967,1736746233891,-500.0,9.999e-05,2]
[348714968,1736746233900,-500.0,9.999e-05,2]
[348714969,1736746233909,-500.0,9.999e-05,2]
[348714970,1736746233919,-500.0,9.999e-05,2]